Cogmind - Beta 17 @@@ ROGUE MODE // 2026.07.21 @ 00:59:32 Player: Artackni Result: Destroyed by SK-60V(R) with Subdweller Laser Performance ------------- Evolutions (0) 0 Regions Visited (2) 400 Robots Destroyed (26) 130 Value Destroyed (521) 521 Prototype IDs (16) 320 Alien Tech Used (0) 0 Bonus (5000) 5000 TOTAL SCORE: 6371 Bonus ------- Prayed to X0-1V1 5000 Cogmind --------- Core Integrity 0/150 Matter 363/500 Energy 95/100 System Corruption 2% Temperature Cool (8) Movement Treading (152) Location -10/Subcaves Parts ------- > --- POWER (1) -------- (None) > --- PROPULSION (2) --- Improved Treads (fused) Advanced Treads (fused) > --- UTILITY (2) ------ Self-contained Transmogrifier > --- WEAPON (2) ------- (None) > --- INVENTORY (5) ---- Meta Core Large Storage Unit Beam Cannon Assault Rifle Battle Cannon Peak State ------------ > --- POWER ------------ Subdweller Power Source > --- PROPULSION ------- Improved Treads Advanced Treads > --- UTILITY ---------- Large Storage Unit Self-contained Transmogrifier > --- WEAPON ----------- Beam Cannon Light Cannon > --- INVENTORY -------- Light Ion Engine Meta Core Small Storage Unit Medium Storage Unit Seismic Detector ECM Suite ECM Suite Makeshift Light Armor Plating EM Pulse Gun EM Pulse Gun EM Pulse Gun Beam Cannon Assault Rifle Assault Rifle Battle Cannon [Rating: 22] Favorites ----------- Power Light Ion Engine Engine Light Ion Engine Propulsion Light Treads Treads Light Treads Utility Large Storage Unit Device Seismic Detector Storage Large Storage Unit Weapon Assault Rifle Energy Cannon Beam Cannon Ballistic Gun Assault Rifle Ballistic Cannon Light Cannon Build | -11 -10 -10 ------- Run | Yrd Mat Sub Slots Evolved . | . . . Power . | . . . Propulsion . | . . . Utility . | . . . Weapon . | . . . Parts Attached 15 | 7 3 5 Power 2 | 1 . 1 Engine 2 | 1 . 1 Core . | . . . Reactor . | . . . Propulsion 2 | 2 . . Treads 2 | 2 . . Leg . | . . . Wheel . | . . . Hover . | . . . Flight . | . . . Utility 6 | 2 3 1 Device 4 | 1 2 1 Storage 2 | 1 1 . Processor . | . . . Hackware . | . . . Protection . | . . . Artifact . | . . . Weapon 5 | 2 . 3 Energy Gun . | . . . Energy Cannon 1 | . . 1 Ballistic Gun 3 | 2 . 1 Ballistic Cannon 1 | . . 1 Launcher . | . . . Special Weapon . | . . . Impact Weapon . | . . . Slashing Weapon . | . . . Piercing Weapon . | . . . Special Melee Weapon . | . . . Unidentified Prototypes 2 | . 1 1 Parts Lost 2 | . 1 1 Power 1 | . . 1 Propulsion . | . . . Utility 1 | . 1 . Weapon . | . . . Highest Loss Streak 1 | . 1 1 To Critical Strikes . | . . . Average Backups 10 | 1 10 14 Power . | . 1 . Propulsion . | . . . Utility 3 | . 3 5 Weapon 5 | . 5 7 Tool/Special . | . . . Unused Backups 12 | . . 12 Power 1 | . . 1 Propulsion . | . . . Utility 4 | . . 4 Weapon 6 | . . 6 Tool/Special 1 | . . 1 Average Slot Usage (%) 96 | . 95 98 Engine 13 | . 14 12 Treads 28 | . 28 28 Device 11 | . 9 14 Storage 13 | . 14 13 Energy Cannon 4 | . . 11 Ballistic Gun 18 | . 28 4 Ballistic Cannon 4 | . . 11 Peak Build Rating 22 | 7 20 22 Average Rating 11 | 5 7 20 On Entrance 9 | . 7 20 Avg Prop Armor Cover (%) . | . . . Naked Turns . | . . . Heaviest Build 31 | 12 27 31 Greatest Support 45 | 40 40 45 Greatest Overweight (x) . | . . . Average Overweight (x) . | . . . Largest Inventory Capacity 15 | 8 15 15 Average Capacity 13 | 7 13 14 Most Carried 15 | 3 14 15 Average Carried 10 | 1 10 14 Final Capacity 15 | 8 15 5 Final Carried 14 | 3 14 5 Transmogrified Parts 3 | . . 3 Integrity Recovered 110 | . . 110 Class Distribution -------------------- 100% | Mutant Dominant Class ---------------- Mutant | -10/Materials Mutant | -10/Subcaves Resources | -11 -10 -10 ----------- Run | Yrd Mat Sub Matter Collected 758 | 318 175 265 Remotely . | . . . Salvage Created 767 | 155 468 144 Parts 47 | 11 22 14 Haulers Intercepted . | . . . Recyclers Shooed 2 | . 2 . Parts Field Recycled . | . . . Retrieved Matter . | . . . Parts Self-Destructed 17 | . . 17 Prevented . | . . . Parts Restored . | . . . Kills | -11 -10 -10 ------- Run | Yrd Mat Sub Combat Hostiles Destroyed 16 | . 8 8 Guns 8 | . 8 . Cannons 8 | . . 8 Classes Destroyed 9 | 3 3 3 Worker 2 | 1 1 . Tunneler 4 | 4 . . Recycler 2 | 1 1 . Mechanic 1 | . 1 . Operator 1 | . 1 . Swarmer 6 | . . 6 Grunt 8 | . 8 . Sentry 1 | . . 1 Subdweller 1 | . . 1 Best Kill Streak 5 | 2 2 5 Combat Bots Only 5 | . 2 5 Max Kills in Single Turn 1 | 1 1 1 Gunslinging . | . . . Exploded . | . . . Melee . | . . . Uniques/NPCs Destroyed . | . . . Combat | -11 -10 -10 -------- Run | Yrd Mat Sub Hostile Shots Fired 100 | . 38 62 Missed 27 | . 8 19 Hits 73 | . 30 43 Projectile 73 | . 30 43 Damage Taken 965 | . 463 502 Core 252 | . 157 95 Absorbed by Shields . | . . . Core Remaining (%) 100 | 100 . . Volleys Fired 86 | 12 40 34 Largest 2 | 2 2 2 Hottest 90 | 40 40 90 Shots Fired 161 | 24 80 57 Gun 107 | 24 80 3 Cannon 54 | . . 54 Launcher . | . . . Special . | . . . Kinetic 139 | 24 80 35 Thermal 22 | . . 22 Explosive . | . . . Electromagnetic . | . . . Robot Hit Streak 9 | 9 8 4 Robot Miss Streak 5 | 1 4 5 Penetration Max . | . . . Secondary Targets 1 | . 1 . Max Gunslinging Chain 1 | . 1 . Shots Hit Robots 80 | 17 47 16 Core Hits 42 | 8 26 8 Critical Kills 1 | . 1 . Critical Parts Destroyed . | . . . Critical Strikes 1 | . 1 . Destroy 1 | . 1 . Melee Attacks . | . . . Impact . | . . . Slashing . | . . . Piercing . | . . . Sneak Attacks . | . . . Combat Hostiles . | . . . Follow-up Attacks . | . . . Damage Inflicted 946 | 172 489 285 Guns 659 | 172 487 . Cannons 285 | . . 285 Explosions . | . . . Melee . | . . . Ramming 2 | . 2 . Kinetic 787 | 172 487 128 Thermal 157 | . . 157 Explosive . | . . . Electromagnetic . | . . . Impact . | . . . Slashing . | . . . Piercing . | . . . Highest Corruption 2 | . . 2 Average Corruption 2 | . . 2 Corruption Purged . | . . . Corruption Blocked . | . . . Effects 3 | . . 3 Message Errors 1 | . . 1 Matter Fused 1 | . . 1 Energy Discharges 1 | . . 1 Overload Shots . | . . . Overflow Damage . | . . . Projectiles . | . . . Explosions . | . . . Melee . | . . . Knockbacks 1 | . . 1 Impact . | . . . Kinetic 1 | . . 1 Secondary . | . . . Self-Inflicted Damage 108 | . 108 . Shots 1 | . 1 . Rammed 1 | . 1 . Targets Rammed 1 | . 1 . Kicked . | . . . Crushed . | . . . Highest Temperature 18 | . 18 . Average Temperature 8 | . 8 . Received Heat Transfer 264 | . 207 57 Siege Activations . | . . . Martial Activations . | . . . Shielding Activations . | . . . Robots Disrupted . | . . . Combat Hostiles . | . . . Robots Corrupted . | . . . Combat Hostiles . | . . . Parts Fried . | . . . Impact Corruptions . | . . . Robots Melted . | . . . Combat Hostiles . | . . . Parts Melted 1 | . . 1 Heat Transferred 333 | . . 333 Parts Sabotaged . | . . . Parts Stolen . | . . . Parts Stripped . | . . . Power Chain Reactions . | . . . Alert | -11 -10 -10 ------- Run | Yrd Mat Sub Maximum Alert Level . | . . . Low Security (%) 100 | 100 100 . Level 1 . | . . . Level 2 . | . . . Level 3 . | . . . Level 4 . | . . . Level 5 . | . . . High Security . | . . . Max Security . | . . . Peak Influence 117 | 10 117 . Initial . | . . . Average 31 | 1 36 . Influence Increases 532 | 30 307 195 Destroy 0b10 Robot/C 300 | . 160 140 Destroy 0b10 Robot/NC 50 | 30 20 . Destroy Leader 60 | . 50 10 Disable Machine 30 | . 30 . Destroy Structure 32 | . 32 . Lose Combat Pursuer 60 | . 15 45 Influence Decreases 471 | 30 307 134 Time Decay 451 | 30 297 124 Lost Part 20 | . 10 10 Squads Dispatched 6 | . 6 . Investigation 1 | . 1 . Extermination . | . . . Reinforcement 5 | . 5 . Assault . | . . . Garrison . | . . . Intercept . | . . . Searches Triggered . | . . . Construction Impeded . | . . . Haulers Reinforced . | . . . Active Scanning Responses . | . . . Cargo Convoy Interrupts . | . . . Stealth | -11 -10 -10 --------- Run | Yrd Mat Sub Distress Signals 1 | . 1 . Communications Jammed . | . . . Distress Signals . | . . . Times Spotted 30 | . 16 14 Peak Tracking Total 5 | . 5 5 Tactical Retreats 3 | . 1 2 Traps | -11 -10 -10 ------- Run | Yrd Mat Sub Traps Triggered 2 | . 1 1 Indirectly . | . . . Trap Hack Attempts . | . . . Triggered . | . . . Disarmed . | . . . Reprogrammed . | . . . Reused . | . . . Traps Extracted . | . . . Installed . | . . . Triggered . | . . . Machines | -11 -10 -10 ---------- Run | Yrd Mat Sub Machines Disabled 3 | . 2 1 Max in Single Turn 1 | . 1 1 Machines Repaired . | . . . Machines Dismantled . | . . . Machines Sabotaged . | . . . Overloaded Fab Kills . | . . . Hacking | -11 -10 -10 --------- Run | Yrd Mat Sub Machines Accessed 3 | . 2 1 Terminals 2 | . 2 . Fabricators . | . . . Repair Stations . | . . . Recycling Units . | . . . Scanalyzers . | . . . Garrison Access . | . . . Total Hacks 4 | . 3 1 Successful 3 | . 2 1 Failed 1 | . 1 . Catastrophic . | . . . Database Lockouts . | . . . Manual 4 | . 4 . Terminals 3 | . 3 . Fabricators . | . . . Repair Stations . | . . . Recycling Units . | . . . Scanalyzers . | . . . Garrison Access . | . . . Terminal Hacks 1 | . . 1 Proto ID Catalog 1 | . . 1 Fabricator Hacks . | . . . Repair Station Hacks . | . . . Recycling Unit Hacks . | . . . Scanalyzer . | . . . Garrison Access Hacks . | . . . Unauthorized Hacks 2 | . 2 . Terminals 2 | . 2 . Skim 2 | . 2 . Fabricators . | . . . Repair Stations . | . . . Recycling Units . | . . . Scanalyzers . | . . . Garrison Access . | . . . Data Cores Recovered . | . . . Used . | . . . Hacking Detections 1 | . 1 . Full Trace Events . | . . . Feedback Events . | . . . Feedback Blocked . | . . . Robot Schematics Acquired . | . . . Robots Built . | . . . Authchips . | . . . Time . | . . . Total Robot Build Rating . | . . . Part Schematics Acquired . | . . . Parts Built . | . . . Authchips . | . . . Time . | . . . Total Part Build Rating . | . . . Part Studies Acquired . | . . . Parts Repaired . | . . . Time . | . . . Parts Recycled . | . . . Recycled Matter . | . . . Retrieved Matter . | . . . Retrieved Components . | . . . Parts Scanalyzed . | . . . Part Schematics Acquired . | . . . Parts Damaged . | . . . Bothacking | -11 -10 -10 ------------ Run | Yrd Mat Sub Used RIF Installer . | . . . Robots Hacked . | . . . Non-combat . | . . . Combat . | . . . Robot Hacks Applied . | . . . Relay Couplers Released . | . . . Fabnet Peak Effective % . | . . . Robots Rewired . | . . . Allies Hacked . | . . . Hacks Repelled . | . . . Allies | -11 -10 -10 -------- Run | Yrd Mat Sub Total Allies . | . . . Largest Group . | . . . Highest-Rated Group . | . . . Highest-Rated Ally . | . . . Total Orders . | . . . Ally Attacks . | . . . Total Damage . | . . . Kills . | . . . Allies Corrupted . | . . . Allies Melted . | . . . X0-1V1 Amusement Gains 21 | . 18 3 Good Acts 3 | . . 3 Bad Acts 3 | . . 3 Intel | -11 -10 -10 ------- Run | Yrd Mat Sub Active Infowar (turns) 798 | 73 725 . Seismic 798 | 73 725 . Robot Analysis Total . | . . . Derelict Logs Recovered 1 | . . 1 Drone Launches . | . . . Drone Recoveries . | . . . Exploration | -11 -10 -10 ------------- Run | Yrd Mat Sub Turns Passed 1903 | 182 1070 651 Spaces Moved 842 | 87 415 340 Core 3 | 3 . . Treads 839 | 84 415 340 Legs . | . . . Wheels . | . . . Hover . | . . . Flight . | . . . Fastest Speed 50 | 50 160 152 Average Speed 158 | 156 160 156 Slowest Speed 160 | 160 160 160 Overloaded Moves . | . . . Propulsion Burnouts . | . . . Robots Hopped . | . . . Potential Cave-ins . | . . . Cave-ins Triggered . | . . . Exploration Rate (%) 30 | 6 68 16 Regions Visited 2 Branch Regions 1 Pre-discovered Areas 1 | . . 1 Known Exits Taken . | . . . Unknown Exits Taken 2 | 1 1 . Scrap Searched 3 | . . 3 Spaces Dug . | . . . Terrain Destroyed 49 | . 47 2 Melee . | . . . Projectile 2 | . . 2 AOE 47 | . 47 . Terrain Rammed . | . . . Walls Destroyed . | . . . Machines Disabled . | . . . Actions | -11 -10 -10 --------- Run | Yrd Mat Sub Total 1258 | 108 748 402 Wait 288 | . 279 9 Move 840 | 86 414 340 Hop . | . . . Pick Up 18 | 3 10 5 Fast Attach 10 | 7 1 2 Attach 1 | . 1 . Detach 2 | . 1 1 Swap 4 | . 1 3 Drop 8 | . . 8 Fire 86 | 12 40 34 Melee . | . . . Ram . | . . . Kick . | . . . Crush 1 | . 1 . Escape Stasis . | . . . Rewire . | . . . Trap . | . . . Miscellaneous . | . . . Route ------- -11/Scrapyard -10/Materials (discovered 3 exits: [*Mat] / [*Min] / *Sub) -10/Subcaves (discovered 1 exit: [*Rec]) History --------- Turn | Location | Event 12 | -11/Scrapyard | Discovered new exit (range 14) 183 | -11/Scrapyard | Entered Materials 317 | -10/Materials | Build established: Mutant 320 | -10/Materials | Core integrity fell below 50% 472 | -10/Materials | Discovered new exit (range 6) 781 | -10/Materials | Discovered new exit (range 12) 1223 | -10/Materials | Discovered new exit (range 5) 1248 | -10/Materials | Prayed at D.C.S.S. Altar Unit 1253 | -10/Materials | Entered Subcaves 1271 | -10/Subcaves | X0-1V1 activates XOMVISION 1443 | -10/Subcaves | Visited 4L-MR0's lab 1456 | -10/Subcaves | Found Prototype Device 1456 | -10/Subcaves | Identified Sfc. Transmogrifier 1478 | -10/Subcaves | Found Meta Core 1605 | -10/Subcaves | Discovered new exit (range 13) 1643 | -10/Subcaves | Core integrity fell below 20% 1646 | -10/Subcaves | Ambushed by Subdweller buried in earth 1768 | -10/Subcaves | Matter capacity permanently improved by X0-1V1 (+200; -100 max core) 1904 | -10/Subcaves | Destroyed by SK-60V(R) with Subdweller Laser Last Messages --------------- 01828_ Y-45 Defender destroyed. 01833_ Lgt. Treads fries itself beyond repair. 01836_ Acquired 47 matter. 01839_ Acquired 1 matter. 01850_ System corrupted: Energy discharge (-46). 01869_ Acquired 43 matter. 01876_ Subatomizers dissect the Cobbler Unit. X0-1V1's Piety Tracker suddenly appears amidst shimmering waves of color. 01889_ SK-60V(R): "WEHOME!" 01889_ Acquired 8 matter. 01892_ Dropped Lrg. Storage Unit. 01893_ Dropped Sml. Storage Unit. 01896_ Acquired Meta Core. 01900_ Dropped Med. Storage Unit. 01900_ Acquired Lrg. Storage Unit. 01901_ Subatomizers dissect the Cobbler Unit. 01901_ Dropped Beam Cannon. 01901_ Dropped Lgt. Cannon. 01902_ Dropped Sub. Power Source. 01904_ X0-1V1 laughs nastily! Map ----- +----------------------------------------------------+ | ?????????????????????????????????????????????????? | | ?????????????????????????????????????????????????? | | ?????????????????????????????????????????????????? | | ?????????????????????????????????????????????????? | | ?????????????????????????????????????????????????? | | ?????????????????????????????????????????????????? | | ?????????????????????????????????????????????????? | | ?????????????????????????????????????????????????? | | ?????????????????????????????????????????????????? | | ?????????????????????????????????????????????????? | | ?????????????????????????????????????????????????? | | ?????????????????????????????????????????????????? | | ?????????????????????????????????????????????????? | | ?????????????????????????????????????????????????? | | ?????????????????????????????????????????????????? | | ?????????????????????????????????????????????????? | | ?????????????????????????????????????????????????? | | ?????????????????????????????????????????????????? | | ?????????????????????????????????????????????????? | | ?????????????#???????????????????????????????????? | | ?????????????# ??????######??????????????????????? | | ????????????## ????### ###????????????????????? | | ????????????# #### ##???????????????????? | | ????????????# # # ##??????????????????? | | ????????????? % ###????????????????? | | ?????????????? # @*! #????????????????? | | ??? "#?????????? ## [![ ##???#????????????? | | "#??????????## ## !!][! ## # ??????? | | ""???????##### % !*[ R=%= ??????? | | <#????## & & ] RR! ??????? | | ""??????# & ### ??????? | | "#????## ### ""#??### ?????? | | ??? "#???## # ##?# ! """???????????? | | ????????## #####??# #"##???????????? | | ???????## ####???## ####????????????? | | ???????# ##???# #???????????????? | | ?####??# #??? ##???????????????? | | ## #### ### ### #??? ##????????????????? | | #### #######??? ###?????????????????? | | ### ##????? #???????????????????? | | ### #?????###???????????????????? | | ##?# #???????????????????????????? | | ???## ### ####???????????????????????????? | | ????#####?# ####??????????????????????????????? | | ??????????######?????????????????????????????????? | | ?????????????????????????????????????????????????? | | ?????????????????????????????????????????????????? | | ?????????????????????????????????????????????????? | | ?????????????????????????????????????????????????? | | ?????????????????????????????????????????????????? | +----------------------------------------------------+ Best States ------------- Heat Dissipation 85 Energy Generation 15 Energy Capacity 200 Matter Stores 363 Matter Capacity 500 Sight Range 16 Terrain Scan Density 10 Evasion (%) 40 Recoil Reduction 2 Item Schematics ----------------- None Robot Schematics ------------------ None Fabricated ------------ Nothing Repaired ---------- Nothing Studied --------- None Alien Tech Used ----------------- None Achievements -------------- None Challenges ------------ None Game ------ Seed GuidanceModifiedTerrabomb Manual? 0 Play Time 00:13:29 Cumulative 293.2 hours Start 2026.07.21 @ 00:36:23 End 2026.07.21 @ 00:59:32 Sessions 1 Manual Loads 0 Difficulty Rogue Special Mode None Game No. 141 Rogue 141 Adventurer 0 Explorer 0 Win Type - Total 18 Types 14/1/1/1/0/0/0/0/0/1 Lore% 79 Gallery% 74 Achievement% 72 Wizard Run 0 Options --------- Layout 0 ASCII 0 Keyboard 1 Movement Arrows Keybinds 0 Fullscreen 2 Font 18/SmallcapsGlow Map View 76x50 Zoom Use 0% Tactical HUD 1 Map Filters NONE Filters NONE Steam 1 RUN: 15b3e697-1120-4501-a2fc-d0acdcfe8974